bitfinex-derivatives/quotes_BTCF0:USTF0_20250325
["timestamp","ask_amount","ask_price","bid_price","bid_amount"]
[1742899506283,0.2030947,87263.0,87262.0,0.4079228]
[1742899506678,0.2030947,87263.0,87262.0,0.2633392]
[1742899506880,0.2030947,87263.0,87262.0,0.3979228]
[1742899507281,0.2030947,87263.0,87262.0,0.4079228]
[1742899507493,0.2030947,87263.0,87262.0,0.2833392]
[1742899507790,0.2030947,87263.0,87262.0,0.0133392]
[1742899507995,0.2334947,87263.0,87262.0,0.0133392]
[1742899508384,0.2334947,87263.0,87262.0,0.00072]
[1742899508887,0.2334947,87263.0,87253.0,0.0122849]
[1742899508888,0.0572924,87261.0,87253.0,0.0122849]
[1742899509184,0.1145928,87255.0,87254.0,0.0007719]
[1742899509382,0.1154328,87255.0,87254.0,0.0007719]
[1742899509587,0.1788328,87255.0,87254.0,0.0007719]
[1742899510083,0.5396328,87255.0,87254.0,0.0007719]
[1742899510282,0.1145981,87251.0,87250.0,0.90618273]
[1742899510485,0.2261581,87251.0,87250.0,0.84549173]
[1742899510677,0.2261581,87251.0,87238.0,0.34394848]
[1742899510678,0.1146046,87246.0,87245.0,0.11209837]
[1742899510879,0.10505016,87239.0,87238.0,0.34394848]
[1742899511092,0.57769017,87239.0,87238.0,0.34454848]
[1742899511290,0.57769017,87239.0,87238.0,0.29464848]
[1742899511887,0.59031969,87239.0,87238.0,0.29464848]
[1742899512992,1.14981969,87239.0,87238.0,0.22780868]
[1742899513185,0.114623,87232.0,87230.0,0.0001719]
[1742899513390,0.47662301,87232.0,87231.0,0.41245382]
[1742899513589,0.62662301,87232.0,87231.0,0.41245382]
[1742899513899,0.73734301,87232.0,87231.0,0.41245382]
[1742899514098,0.73734301,87232.0,87231.0,0.00105855]
[1742899514294,0.73734301,87232.0,87231.0,0.00045855]
[1742899514494,0.58734301,87232.0,87231.0,0.00045855]
[1742899516397,0.61914301,87232.0,87231.0,0.00045855]
[1742899521299,0.50842301,87232.0,87231.0,0.00045855]
[1742899521499,0.47662301,87232.0,87231.0,0.25045855]
[1742899521703,0.58738301,87232.0,87231.0,0.03319855]
[1742899521905,0.58738301,87232.0,87231.0,0.06315855]
[1742899522094,0.58738301,87232.0,87231.0,0.33315855]
[1742899522295,0.58738301,87232.0,87231.0,0.31383855]
[1742899522500,0.58738301,87232.0,87231.0,0.06383855]
[1742899523004,0.58738301,87232.0,87231.0,0.06315855]
[1742899525195,0.58766301,87232.0,87231.0,0.06315855]
[1742899527508,0.61836301,87232.0,87231.0,0.06315855]
[1742899532304,0.58766301,87232.0,87231.0,0.06315855]
[1742899533702,0.22686301,87232.0,87231.0,0.42395855]
[1742899533899,0.11582301,87232.0,87231.0,0.66455855]
[1742899534110,8e-05,87233.0,87232.0,0.114623]
[1742899534303,8e-05,87233.0,87232.0,0.566023]
[1742899534498,8e-05,87233.0,87232.0,0.306023]
[1742899534700,0.114618,87236.0,87235.0,0.1719255]
[1742899535003,0.06531801,87236.0,87235.0,0.4425655]
[1742899535309,0.06531801,87236.0,87235.0,0.327949]
[1742899535710,0.06531801,87236.0,87235.0,0.27064]
[1742899535906,0.064718,87236.0,87235.0,0.28248442]
[1742899536103,0.1146217,87233.0,87232.0,0.0308]
[1742899536303,0.1156217,87233.0,87232.0,0.0308]
[1742899536914,0.1146217,87233.0,87232.0,0.0308]
[1742899537106,0.1146217,87233.0,87232.0,0.0615]
[1742899537501,0.1146217,87233.0,87232.0,0.176123]
[1742899537707,0.1156217,87233.0,87232.0,0.176123]
[1742899538013,0.1156217,87233.0,87232.0,0.0919]
[1742899538801,0.1464217,87233.0,87232.0,0.0919]
[1742899540719,0.11622171,87233.0,87232.0,0.0925]
[1742899542220,0.14732171,87233.0,87232.0,0.0925]
[1742899543022,0.18052171,87233.0,87232.0,0.0925]
[1742899544719,0.29148171,87233.0,87232.0,0.0925]
[1742899545314,0.25828171,87233.0,87232.0,0.0925]
[1742899549629,0.29108171,87233.0,87232.0,0.0925]
[1742899549834,0.29108171,87233.0,87232.0,0.0006]
[1742899550021,0.114623,87232.0,87231.0,0.00045855]
[1742899550221,0.11522301,87232.0,87231.0,0.00045855]
[1742899550421,0.18132301,87232.0,87231.0,0.00045855]
[1742899558433,0.29208301,87232.0,87231.0,0.00045855]
[1742899565538,0.25928301,87232.0,87231.0,0.00045855]
[1742899565730,0.11522301,87232.0,87231.0,0.00105855]
[1742899565935,0.22586301,87232.0,87231.0,0.00105855]
[1742899566242,0.22586301,87232.0,87231.0,0.09695855]
[1742899566952,0.25886301,87232.0,87231.0,0.09695855]
[1742899569644,0.22586301,87232.0,87231.0,0.09695855]
[1742899570538,0.25686301,87232.0,87231.0,0.09695855]
[1742899571741,0.61766301,87232.0,87231.0,0.03325855]
[1742899571944,0.67966301,87232.0,87231.0,5e-08]
[1742899572247,0.64846301,87232.0,87231.0,5e-08]
[1742899573038,0.50702301,87232.0,87231.0,5e-08]
[1742899573239,0.61806301,87232.0,87231.0,5e-08]
[1742899575644,0.64866301,87232.0,87231.0,5e-08]
[1742899576049,0.67926301,87232.0,87231.0,5e-08]
[1742899577051,0.64866301,87232.0,87231.0,5e-08]
[1742899583851,0.75910262,87232.0,87231.0,5e-08]
[1742899587251,0.88652859,87232.0,87231.0,5e-08]
[1742899590560,0.98419604,87232.0,87231.0,5e-08]
[1742899592265,0.33613304,87232.0,87231.0,0.39462435]
[1742899592464,0.45075604,87232.0,87231.0,0.06320005]
[1742899592665,0.33613304,87232.0,87231.0,0.41935523]
[1742899592859,0.35171604,87232.0,87231.0,0.06336005]
[1742899593462,0.210083,87232.0,87231.0,0.06260005]
[1742899594470,0.321163,87232.0,87231.0,0.06260005]
[1742899596166,0.321163,87232.0,87231.0,5e-08]
[1742899602269,0.43220893,87232.0,87231.0,5e-08]
[1742899602576,0.1146309,87226.0,87225.0,0.0327]
[1742899602768,0.4761109,87226.0,87225.0,0.0327]
[1742899603164,0.5396109,87226.0,87225.0,0.0327]
[1742899604577,0.5396109,87226.0,87225.0,0.0347]
[1742899605976,0.63747249,87226.0,87225.0,0.0347]
[1742899609782,0.75063207,87226.0,87225.0,0.0347]
[1742899617489,0.63747249,87226.0,87225.0,0.0347]
[1742899621695,0.57397249,87226.0,87225.0,0.0347]
[1742899621887,0.32397249,87226.0,87225.0,0.2047]
[1742899622190,0.22417249,87226.0,87225.0,0.03546]
[1742899622493,0.2251325,87226.0,87225.0,0.03546]
[1742899623390,0.2251325,87226.0,87225.0,0.0347]
[1742899624100,0.3170325,87226.0,87225.0,0.0347]
[1742899630499,0.4290646,87226.0,87225.0,0.002]
[1742899631702,0.4290646,87226.0,87225.0,0.0321]
[1742899634595,0.52717839,87226.0,87225.0,0.0321]
[1742899641400,0.1146441,87216.0,87215.0,3e-08]
[1742899641699,0.58700411,87216.0,87215.0,3e-08]
[1742899642203,0.68370411,87216.0,87215.0,3e-08]
[1742899643601,0.68470411,87216.0,87215.0,3e-08]
[1742899644198,0.68670411,87216.0,87215.0,3e-08]
[1742899644398,0.69864618,87216.0,87215.0,3e-08]
[1742899646306,0.81041841,87216.0,87215.0,3e-08]
[1742899648608,0.81041841,87216.0,87215.0,0.03240003]
[1742899651605,0.59081634,87216.0,87215.0,0.31240003]
[1742899651806,0.59081634,87216.0,87215.0,0.06440003]
[1742899652006,0.34069634,87216.0,87215.0,0.35340003]
[1742899652213,0.34069634,87216.0,87215.0,0.33526003]
[1742899652599,0.34069634,87216.0,87215.0,0.09526003]
[1742899652799,0.34069634,87216.0,87215.0,0.35526003]
[1742899653300,0.22901634,87216.0,87215.0,0.35526003]
[1742899653504,0.23001634,87216.0,87215.0,0.35526003]
[1742899653703,0.11824411,87216.0,87215.0,0.59526003]
[1742899653908,0.00260001,87216.0,87215.0,1.08070543]
[1742899654114,0.320391,87221.0,87220.0,0.1146388]
[1742899654410,0.321551,87221.0,87220.0,0.6057588]
[1742899654606,0.321551,87221.0,87220.0,0.7883588]
[1742899654807,0.321551,87221.0,87220.0,0.7983588]
[1742899655112,0.321551,87221.0,87220.0,0.5583588]
[1742899655505,0.321551,87221.0,87220.0,0.44372]
[1742899655705,0.321551,87221.0,87220.0,0.55372]
[1742899656107,0.321551,87221.0,87220.0,0.29372]
[1742899657015,0.321551,87221.0,87220.0,0.6483588]
[1742899657721,0.321551,87221.0,87220.0,0.57372]
[1742899657919,0.1157986,87221.0,87220.0,0.57372]
[1742899658620,0.1157986,87221.0,87220.0,0.54372]
[1742899659123,0.1157986,87221.0,87220.0,0.31372]
[1742899659418,0.1157986,87221.0,87220.0,0.29372]
[1742899659618,0.1157986,87221.0,87220.0,0.30372]
[1742899659818,0.1157986,87221.0,87220.0,0.4183588]
[1742899660121,0.1157986,87221.0,87220.0,0.6783588]
[1742899660520,0.1157986,87221.0,87220.0,0.6883588]
[1742899661319,0.1157986,87221.0,87220.0,0.6583588]
[1742899661521,0.1146386,87221.0,87220.0,0.6583588]
[1742899661718,0.1146386,87221.0,87220.0,0.6483588]
[1742899662019,0.1146386,87221.0,87220.0,0.4183588]
[1742899662315,0.11523861,87221.0,87220.0,0.7083588]
[1742899662616,0.1146386,87221.0,87220.0,0.4183588]
[1742899662816,0.11575861,87221.0,87220.0,0.4183588]
[1742899663022,0.11575861,87221.0,87220.0,0.6483588]
[1742899663215,0.1146386,87221.0,87220.0,0.6483588]
[1742899663815,0.1146386,87221.0,87220.0,0.4183588]
[1742899664113,0.1157986,87221.0,87220.0,0.4183588]
[1742899665217,0.1157986,87221.0,87220.0,0.6983588]
[1742899665520,0.1146386,87221.0,87220.0,0.6583588]
[1742899665719,0.1146386,87221.0,87220.0,0.4183588]
[1742899665919,0.11575861,87221.0,87220.0,0.6883588]
[1742899666225,0.1146386,87221.0,87220.0,0.6883588]
[1742899666623,0.1146386,87221.0,87220.0,0.4183588]
[1742899666826,0.11575861,87221.0,87220.0,0.4183588]
[1742899668423,0.17995861,87221.0,87220.0,0.4183588]
[1742899669014,0.17995861,87221.0,87220.0,0.6583588]
[1742899670315,0.12263921,87221.0,87220.0,0.6583588]
[1742899670522,0.1215192,87221.0,87220.0,0.6583588]
[1742899671621,0.1788375,87221.0,87220.0,0.6483588]
[1742899671928,0.1788375,87221.0,87220.0,0.6883588]
[1742899672225,0.2112375,87221.0,87220.0,0.6883588]
[1742899672618,0.2112375,87221.0,87220.0,1.0491588]
[1742899673624,0.2112375,87221.0,87220.0,1.0591588]
[1742899677828,0.2112375,87221.0,87220.0,0.7791588]
[1742899678036,0.2112375,87221.0,87220.0,1.0591588]
[1742899678337,0.2112375,87221.0,87220.0,1.0191588]
[1742899679833,0.2112375,87221.0,87220.0,0.63192]
[1742899680028,0.21235751,87221.0,87220.0,0.7465588]
[1742899680233,0.21235751,87221.0,87220.0,0.7265588]
[1742899681220,0.2112375,87221.0,87220.0,0.9865588]
[1742899681426,0.2112375,87221.0,87220.0,0.7265588]
[1742899681729,0.2123975,87221.0,87220.0,0.7265588]
[1742899682035,0.2123975,87221.0,87220.0,0.7665588]
[1742899682226,0.2123975,87221.0,87220.0,0.4765588]
[1742899682724,0.2123975,87221.0,87220.0,0.7265588]
[1742899682929,0.2123975,87221.0,87220.0,0.9665588]
[1742899683836,0.2123975,87221.0,87220.0,0.9765588]
[1742899684028,0.2112375,87221.0,87220.0,0.9765588]
[1742899684234,0.21235751,87221.0,87220.0,1.0083588]
[1742899684442,0.2112375,87221.0,87220.0,0.7583588]
[1742899684639,0.2123975,87221.0,87220.0,1.0283588]
[1742899684939,0.2112375,87221.0,87220.0,1.0283588]
[1742899685132,0.2112375,87221.0,87220.0,0.7583588]
[1742899685333,0.21235751,87221.0,87220.0,1.0283588]
[1742899685937,0.21235751,87221.0,87220.0,0.7583588]
[1742899686240,0.21235751,87221.0,87220.0,0.9983588]
[1742899686627,0.21235751,87221.0,87220.0,1.0083588]
[1742899686830,0.21235751,87221.0,87220.0,1.0283588]
[1742899687538,0.21235751,87221.0,87220.0,0.7583588]
[1742899687723,0.21235751,87221.0,87220.0,0.62192]
[1742899687923,0.21235751,87221.0,87220.0,0.4765588]
[1742899688322,0.21235751,87221.0,87220.0,0.7165588]
[1742899689032,0.21235751,87221.0,87220.0,0.9465588]
[1742899689238,0.21235751,87221.0,87220.0,0.7165588]
[1742899689435,0.21235751,87221.0,87220.0,0.64192]
[1742899689637,0.21235751,87221.0,87220.0,0.36192]
[1742899690139,0.1146441,87216.0,87215.0,3e-08]
[1742899690329,0.1154841,87216.0,87215.0,0.00080003]
[1742899690640,0.1468841,87216.0,87215.0,0.00080003]
[1742899692933,0.1468841,87216.0,87215.0,0.26080003]
[1742899693133,0.1769841,87216.0,87215.0,0.26080003]
[1742899693336,0.1779841,87216.0,87215.0,0.36544543]
[1742899693544,0.1779841,87216.0,87215.0,0.11544543]
[1742899693743,0.1779841,87216.0,87215.0,0.36544543]
[1742899694142,0.1779841,87216.0,87215.0,0.00080003]
[1742899694343,0.1779841,87216.0,87215.0,0.23080003]
[1742899694544,0.1779841,87216.0,87215.0,0.37544543]
[1742899694838,0.1779841,87216.0,87215.0,0.24080003]
[1742899695229,0.1779841,87216.0,87215.0,0.00080003]
[1742899695433,0.1779841,87216.0,87215.0,3e-08]
[1742899695940,0.1779841,87216.0,87215.0,0.11464543]
[1742899696134,0.1779841,87216.0,87215.0,0.00080003]
[1742899696341,0.1779841,87216.0,87215.0,0.23000003]
[1742899696643,0.1779841,87216.0,87215.0,0.34544543]
[1742899697839,0.38406296,87216.0,87215.0,0.11544543]
[1742899698742,0.38406296,87216.0,87215.0,0.00080003]
[1742899699544,0.38406296,87216.0,87215.0,0.11544543]
[1742899699745,0.38406296,87216.0,87215.0,0.00080003]
[1742899700341,0.38406296,87216.0,87215.0,0.39544543]
[1742899700747,0.38406296,87216.0,87215.0,0.11544543]
[1742899701046,0.38406296,87216.0,87215.0,0.36544543]
[1742899701243,0.1779841,87216.0,87215.0,0.36544543]
[1742899701842,0.1779841,87216.0,87215.0,0.11544543]
[1742899702036,0.1779841,87216.0,87215.0,0.38544543]
[1742899702739,0.1779841,87216.0,87215.0,0.34544543]
[1742899703134,0.1779841,87216.0,87215.0,0.11544543]
[1742899703333,0.1779841,87216.0,87215.0,0.38544543]
[1742899703538,0.1779841,87216.0,87215.0,0.34544543]
[1742899703734,0.1779841,87216.0,87215.0,0.37544543]
[1742899704047,0.1779841,87216.0,87215.0,0.40544543]
[1742899704646,0.1779841,87216.0,87215.0,0.34544543]
[1742899705339,0.1779841,87216.0,87215.0,0.65034543]
[1742899705340,0.06334,87216.0,87215.0,0.65034543]
[1742899705537,0.03194,87216.0,87215.0,0.65034543]
[1742899705737,0.0311,87216.0,87215.0,0.65034543]
[1742899707153,0.1457441,87216.0,87215.0,0.65034543]
[1742899707549,0.0311,87216.0,87215.0,0.65034543]
[1742899708446,0.1146269,87230.0,87218.0,0.0573206]
[1742899708643,0.1148054,87224.0,87223.0,0.4754349]
[1742899708954,0.1148054,87224.0,87223.0,1.1087349]
[1742899709145,0.0001719,87224.0,87223.0,1.1087349]
[1742899709555,0.0310719,87224.0,87223.0,1.1087349]
[1742899709745,0.0001719,87224.0,87223.0,1.1087349]
[1742899709945,0.0031719,87224.0,87223.0,1.12348588]
[1742899710252,8e-05,87253.0,87223.0,1.12348588]
[1742899710253,0.27445473,87249.0,87242.0,0.1146099]
[1742899710445,0.24074789,87243.0,87242.0,0.7354099]
[1742899710648,0.24074789,87243.0,87242.0,0.9862099]
[1742899710848,0.35535649,87243.0,87242.0,1.0485099]
[1742899711355,0.11520861,87243.0,87242.0,1.0485099]
[1742899711657,0.03150001,87243.0,87242.0,1.0799099]
[1742899711851,0.0309,87243.0,87242.0,1.0799099]
[1742899712054,0.0317,87243.0,87242.0,1.0799099]
[1742899712253,0.0309,87243.0,87242.0,1.0799099]
[1742899712549,0.03150001,87243.0,87242.0,1.0799099]
[1742899712751,0.0309,87243.0,87242.0,1.0799099]
[1742899713050,8e-05,87245.0,87244.0,0.1146073]
[1742899713252,0.00088,87245.0,87244.0,0.65754574]
[1742899713554,0.1154859,87245.0,87244.0,0.72134574]
[1742899713757,0.03108,87245.0,87244.0,0.73006247]
[1742899714057,0.1456859,87245.0,87244.0,0.73006247]
[1742899714261,0.1757859,87245.0,87244.0,0.73006247]
[1742899714453,0.1757859,87245.0,87244.0,0.48006247]
[1742899715554,0.1757859,87245.0,87244.0,0.24951673]
[1742899715861,0.1757859,87245.0,87244.0,0.26951673]
[1742899716956,0.1757859,87245.0,87244.0,0.64412403]
[1742899717156,0.1757859,87245.0,87244.0,0.67611068]
[1742899717458,0.1757859,87245.0,87244.0,0.39611068]
[1742899717960,0.1757859,87245.0,87244.0,0.70881068]
[1742899718260,0.1757859,87245.0,87244.0,0.73881068]
[1742899718459,0.1757859,87245.0,87244.0,0.45881068]
[1742899719059,0.1757859,87245.0,87244.0,0.48881068]
[1742899720054,0.1757859,87245.0,87244.0,0.43881068]
[1742899720251,0.1757859,87245.0,87244.0,0.40611068]
[1742899720762,0.1757859,87245.0,87244.0,0.39611068]
[1742899720962,0.1757859,87245.0,87244.0,0.13611068]
[1742899721362,0.1757859,87245.0,87244.0,0.00951673]
[1742899721762,0.1757859,87245.0,87244.0,0.40412403]
[1742899722163,0.1757859,87245.0,87244.0,0.12412403]
[1742899722464,0.1757859,87245.0,87244.0,0.38412403]
[1742899722865,0.1757859,87245.0,87244.0,0.39582238]
[1742899723367,0.1757859,87245.0,87244.0,0.13582238]
[1742899723862,0.1757859,87245.0,87244.0,0.39582238]
[1742899724272,0.1757859,87245.0,87244.0,0.13582238]
[1742899725155,0.1757859,87245.0,87244.0,0.37582238]
[1742899725559,0.1757859,87245.0,87244.0,0.13582238]
[1742899725964,0.1757859,87245.0,87244.0,0.37582238]
[1742899726363,0.1757859,87245.0,87244.0,0.24951673]
[1742899726661,0.1757859,87245.0,87244.0,0.00951673]
[1742899726863,0.1757859,87245.0,87244.0,0.12412403]
[1742899727166,0.1757859,87245.0,87244.0,0.00951673]
[1742899727558,0.1757859,87245.0,87244.0,0.12412403]
[1742899727967,0.1757859,87245.0,87244.0,0.00951673]
[1742899730265,0.1757859,87245.0,87244.0,0.0008]
[1742899730965,0.1146086,87243.0,87242.0,0.01166968]
[1742899731266,0.11520861,87243.0,87242.0,0.0008]
[1742899731456,0.17970861,87243.0,87242.0,0.0008]
[1742899731657,0.1146138,87239.0,87238.0,0.0118902]
[1742899731852,0.1485138,87239.0,87238.0,0.3454151]
[1742899732054,0.2130138,87239.0,87238.0,0.12412437]
[1742899732264,0.2130138,87239.0,87238.0,0.36618371]
[1742899733060,0.2140138,87239.0,87238.0,0.37618371]
[1742899733762,0.2140138,87239.0,87238.0,0.70028371]
[1742899733970,0.2140138,87239.0,87238.0,0.44028371]
[1742899734369,0.2140138,87239.0,87238.0,0.72028371]
[1742899736167,0.2140138,87239.0,87238.0,0.71028371]
[1742899736373,0.2140138,87239.0,87238.0,0.67028371]
[1742899736680,0.2140138,87239.0,87238.0,0.44028371]
[1742899736973,0.2140138,87239.0,87238.0,0.72028371]
[1742899737265,0.2140138,87239.0,87238.0,0.70028371]
[1742899738176,0.2140138,87239.0,87238.0,0.44028371]
[1742899738371,0.2140138,87239.0,87238.0,0.68028371]
[1742899738570,0.2140138,87239.0,87238.0,0.44028371]
[1742899738774,0.2140138,87239.0,87238.0,0.68028371]
[1742899738975,0.2140138,87239.0,87238.0,0.73028371]
[1742899739273,0.2140138,87239.0,87238.0,0.72028371]
[1742899739765,0.2140138,87239.0,87238.0,0.20028371]
[1742899739967,0.2140138,87239.0,87238.0,0.43028371]
[1742899741075,0.2140138,87239.0,87238.0,0.69028371]
[1742899741264,0.2140138,87239.0,87238.0,0.68028371]
[1742899741467,0.2140138,87239.0,87238.0,0.43028371]
[1742899742777,0.2140138,87239.0,87238.0,0.71028371]
[1742899743576,0.2140138,87239.0,87238.0,0.68028371]
[1742899744978,0.2140138,87239.0,87238.0,0.43028371]
[1742899745371,0.2140138,87239.0,87238.0,0.67028371]
[1742899745978,0.2140138,87239.0,87238.0,0.43028371]
[1742899746171,0.2140138,87239.0,87238.0,1.93028371]
[1742899746373,0.2132138,87239.0,87238.0,1.93028371]
[1742899747066,0.2132138,87239.0,87238.0,2.17028371]
[1742899747777,0.2132138,87239.0,87238.0,2.18028371]
[1742899749082,0.2132138,87239.0,87238.0,1.93028371]
[1742899749280,0.2140138,87239.0,87238.0,2.16028371]
[1742899749469,0.2132138,87239.0,87238.0,2.16028371]
[1742899750579,0.0655,87239.0,87238.0,2.17028371]
[1742899750983,0.32021245,87245.0,87244.0,0.1146073]
[1742899751182,0.20560585,87245.0,87244.0,0.9562073]
[1742899751385,0.20560585,87245.0,87244.0,1.0191073]
[1742899751874,0.03048,87246.0,87245.0,0.1146059]
[1742899752073,0.03048,87246.0,87245.0,0.6905859]
[1742899752784,0.06088,87246.0,87245.0,0.6905859]
[1742899754281,0.06088,87246.0,87245.0,0.4205859]
[1742899754580,0.06088,87246.0,87245.0,0.6705859]
[1742899756574,0.06088,87246.0,87245.0,0.4205859]
[1742899756783,0.06168,87246.0,87245.0,0.6705859]
[1742899756971,0.1754846,87246.0,87245.0,0.4205859]
[1742899757971,0.1754846,87246.0,87245.0,0.00088]
[1742899758175,0.1762846,87246.0,87245.0,0.00088]
[1742899758480,0.1762846,87246.0,87245.0,0.3854859]
[1742899758988,0.06168,87246.0,87245.0,0.6554859]
[1742899759288,0.06088,87246.0,87245.0,0.7211859]
[1742899759488,0.1754846,87246.0,87245.0,0.7211859]
[1742899759986,0.1754846,87246.0,87245.0,0.7411859]
[1742899760372,0.06088,87246.0,87245.0,0.7011859]
[1742899760790,0.1754846,87246.0,87245.0,0.7011859]
[1742899761880,0.1754846,87246.0,87245.0,0.6686859]
[1742899762186,0.1754846,87246.0,87245.0,0.4286859]
[1742899762388,0.1762846,87246.0,87245.0,0.4286859]
[1742899763182,0.2075846,87246.0,87245.0,0.4286859]
[1742899764379,0.2075846,87246.0,87245.0,0.7894859]
[1742899765495,0.2075846,87246.0,87245.0,1.0294859]
[1742899765681,0.2067846,87246.0,87245.0,1.0294859]
[1742899765985,0.2067846,87246.0,87245.0,0.7562859]
[1742899766189,0.2076246,87246.0,87245.0,0.7562859]
[1742899766882,0.2076246,87246.0,87245.0,1.0362859]
[1742899767387,0.2076246,87246.0,87245.0,1.0262859]
[1742899767892,0.2067846,87246.0,87245.0,1.0262859]
[1742899768075,0.2067846,87246.0,87245.0,0.9962859]
[1742899769574,0.2067846,87246.0,87245.0,0.9862859]
[1742899769775,0.2075846,87246.0,87245.0,0.9862859]
[1742899770382,0.2075846,87246.0,87245.0,0.9962859]
[1742899770982,0.09298,87246.0,87245.0,0.9962859]
[1742899771182,0.2067846,87246.0,87245.0,1.0614859]
[1742899772291,0.09218,87246.0,87245.0,1.0614859]
[1742899772491,0.2067846,87246.0,87245.0,1.0614859]
[1742899773984,0.2067846,87246.0,87245.0,2.5614859]
[1742899776588,0.2067846,87246.0,87245.0,1.0614859]
[1742899778593,0.09218,87246.0,87245.0,1.0614859]
[1742899779094,0.0921,87246.0,87245.0,2.5614859]
[1742899779889,0.2067046,87246.0,87245.0,2.5614859]
[1742899780091,0.0921,87246.0,87245.0,2.5614859]
[1742899780983,0.2067046,87246.0,87245.0,2.2562859]
[1742899781494,0.2067046,87246.0,87245.0,0.7562859]
[1742899781704,0.2075046,87246.0,87245.0,0.9862859]
[1742899781993,0.2075046,87246.0,87245.0,1.0162859]
[1742899782198,0.2067046,87246.0,87245.0,1.0362859]
[1742899782697,0.2067046,87246.0,87245.0,1.0162859]
[1742899782889,0.2067046,87246.0,87245.0,0.7562859]
[1742899783486,0.2067046,87246.0,87245.0,1.0362859]
[1742899784085,0.2067046,87246.0,87245.0,0.7562859]
[1742899784292,0.2067046,87246.0,87245.0,1.0062859]
[1742899785294,0.2067046,87246.0,87245.0,0.7562859]
[1742899785490,0.2067046,87246.0,87245.0,1.0062859]
[1742899786595,0.2067046,87246.0,87245.0,0.9862859]
[1742899787795,0.2067046,87246.0,87245.0,0.7562859]
[1742899788201,0.2067046,87246.0,87245.0,0.9862859]
[1742899788603,0.2067046,87246.0,87245.0,0.9962859]
[1742899788804,0.2067046,87246.0,87245.0,0.7562859]
[1742899790204,0.2067046,87246.0,87245.0,1.0262859]
[1742899790398,0.2067046,87246.0,87245.0,0.7562859]
[1742899790603,0.2067046,87246.0,87245.0,1.0162859]
[1742899790794,0.2067046,87246.0,87245.0,0.7562859]
[1742899791398,0.2067046,87246.0,87245.0,1.0262859]
[1742899791592,0.2067046,87246.0,87245.0,1.0362859]
[1742899791793,0.2067046,87246.0,87245.0,1.0062859]
[1742899791990,0.2067046,87246.0,87245.0,0.7562859]
[1742899792206,0.2067046,87246.0,87245.0,1.0062859]
[1742899792506,0.2067046,87246.0,87245.0,0.9962859]
[1742899793302,0.2067046,87246.0,87245.0,1.0262859]
[1742899793605,0.2067046,87246.0,87245.0,1.0362859]
[1742899793806,0.2067046,87246.0,87245.0,0.7562859]
[1742899794893,0.2067046,87246.0,87245.0,0.9962859]
[1742899795106,0.2067046,87246.0,87245.0,0.7562859]
[1742899795301,0.2067046,87246.0,87245.0,1.0262859]
[1742899795503,0.2067046,87246.0,87245.0,0.7562859]
[1742899795800,0.2067046,87246.0,87245.0,1.0062859]
[1742899797910,0.2067046,87246.0,87245.0,1.0262859]
[1742899798297,0.2067046,87246.0,87245.0,1.0062859]
[1742899798709,0.2067046,87246.0,87245.0,1.0362859]
[1742899799702,0.2067046,87246.0,87245.0,1.0262859]
[1742899800409,0.2067046,87246.0,87245.0,0.7562859]
[1742899802203,0.2067046,87246.0,87245.0,0.7462859]
[1742899802408,0.2075046,87246.0,87245.0,0.36168]
[1742899802613,0.1146138,87239.0,87238.0,0.214993]
[1742899802816,0.1146191,87235.0,87230.0,0.1146244]
[1742899803112,0.1146191,87235.0,87229.0,0.04133409]
[1742899803113,0.1152591,87235.0,87234.0,0.27555264]
[1742899803305,0.1754591,87235.0,87234.0,0.27555264]
[1742899803705,0.114627,87229.0,87210.0,1.5321]
[1742899803909,0.225907,87229.0,87228.0,0.34384458]
[1742899804304,0.0008,87229.0,87228.0,0.73847288]
[1742899804519,0.2251868,87230.0,87229.0,0.114627]
[1742899804716,0.2251868,87230.0,87229.0,0.406227]
[1742899804717,0.2259868,87230.0,87229.0,0.406227]
[1742899805011,0.2259068,87230.0,87229.0,0.0635]
[1742899805217,0.2259068,87230.0,87229.0,0.0316]
[1742899806612,0.11128,87230.0,87221.0,0.0001719]
[1742899806809,0.1146362,87222.0,87221.0,0.3006719]
[1742899807116,0.1146362,87222.0,87221.0,0.4053094]
[1742899807312,0.1785362,87222.0,87221.0,0.3219719]
[1742899807815,0.1785362,87222.0,87221.0,0.33376729]
[1742899808301,0.2890162,87222.0,87221.0,0.72840479]
[1742899808503,0.2890162,87222.0,87221.0,0.44840479]
[1742899808710,0.2890162,87222.0,87221.0,0.3219719]
[1742899809012,0.2890162,87222.0,87221.0,0.3019719]
[1742899809317,0.2890162,87222.0,87221.0,0.0619719]
[1742899810015,0.2890162,87222.0,87221.0,0.3413719]
[1742899810315,0.2890162,87222.0,87221.0,0.3420119]
[1742899810816,0.2890162,87222.0,87221.0,0.0620119]
[1742899811116,0.2890162,87222.0,87221.0,0.0001719]
[1742899812216,0.30064884,87222.0,87221.0,0.0001719]
[1742899812412,0.45064884,87222.0,87221.0,0.0001719]
[1742899813309,0.4390162,87222.0,87221.0,0.0001719]
[1742899813716,0.2890162,87222.0,87221.0,0.0001719]
[1742899816508,0.1785362,87222.0,87221.0,0.0001719]
[1742899816708,0.2890162,87222.0,87221.0,0.0001719]
[1742899832832,0.53518,87222.0,87215.0,3e-08]
[1742899833024,0.1146441,87216.0,87215.0,3e-08]
[1742899833219,0.1154441,87216.0,87215.0,3e-08]
[1742899833427,0.1756441,87216.0,87215.0,3e-08]
[1742899833623,0.1146598,87204.0,87203.0,0.0312]
[1742899833831,0.1146651,87200.0,87184.0,0.1146861]
[1742899834031,0.1146651,87200.0,87195.0,0.000172]
[1742899834032,0.1155451,87200.0,87195.0,0.000172]
[1742899834217,0.1777451,87200.0,87195.0,0.000172]
[1742899836025,0.2882651,87200.0,87195.0,0.000172]
[1742899836227,0.30003301,87200.0,87195.0,0.000172]
[1742899836630,0.18951301,87200.0,87199.0,0.00345872]
[1742899836934,0.26823301,87200.0,87199.0,0.00345872]
[1742899837436,0.29993301,87200.0,87199.0,0.00345872]
[1742899837836,0.29993301,87200.0,87199.0,0.00645872]
[1742899845638,0.47121713,87200.0,87199.0,0.00645872]
[1742899848840,0.29993301,87200.0,87199.0,0.00645872]
[1742899849457,0.66073301,87200.0,87199.0,0.00645872]
[1742899849854,0.29993301,87200.0,87199.0,0.00645872]
[1742899850049,0.66073301,87200.0,87199.0,0.00645872]
[1742899861249,0.6489651,87200.0,87199.0,0.00645872]
[1742899862559,0.66067761,87200.0,87199.0,0.00645872]
[1742899864062,0.6489651,87200.0,87199.0,0.00645872]
[1742899864361,0.75371487,87200.0,87199.0,0.00645872]
[1742899866852,0.39291487,87200.0,87199.0,0.00645872]
[1742899867049,0.75371487,87200.0,87199.0,0.00645872]
[1742899867355,0.85522214,87200.0,87199.0,0.00645872]
[1742899870657,0.6489651,87200.0,87199.0,0.00645872]
[1742899875269,0.61684506,87200.0,87199.0,0.25645872]
[1742899875569,0.22564506,87200.0,87199.0,0.37324614]
[1742899875871,0.22564506,87200.0,87199.0,0.25857974]
[1742899876372,0.22564506,87200.0,87199.0,0.43784614]